bitfinex-derivatives/quotes_BNBF0:USTF0_20251220
["timestamp","ask_amount","ask_price","bid_price","bid_amount"]
[1766209945307,1.15297638,855.9,854.74,53.93857062]
[1766209949208,1.15297638,855.89,854.74,53.93857062]
[1766209951212,1.15297638,855.88,854.74,53.93857062]
[1766209953314,1.15297638,855.87,854.74,53.93857062]
[1766209955215,1.15297638,855.86,854.74,55.10359361]
[1766209956415,1.15297638,855.85,854.75,1.16502299]
[1766209957216,1.15297638,855.84,854.76,1.16502299]
[1766209958418,1.15297638,855.82,854.78,1.16502299]
[1766209959217,1.15297638,855.81,854.79,1.16502299]
[1766209960720,53.05945418,855.93,854.74,53.93857062]
[1766209960721,1.15297638,855.72,854.74,53.93857062]
[1766209961221,1.15297638,855.73,854.74,53.93857062]
[1766209961421,1.15297638,855.69,854.74,53.93857062]
[1766209962224,1.15297638,855.7,854.74,53.93857062]
[1766209963223,1.15297638,855.71,854.6,1.16502299]
[1766209963418,1.15297638,855.59,854.48,1.16502299]
[1766209963618,1.15297638,855.59,854.55,0.20345642]
[1766209964218,1.15297638,855.61,854.55,0.20345642]
[1766209964423,1.15297638,855.58,854.55,0.20345642]
[1766209965120,1.15297638,855.6,854.55,0.20345642]
[1766209966121,1.15297638,855.62,854.55,0.20345642]
[1766209967226,1.15297638,855.63,854.55,0.20345642]
[1766209968227,1.15297638,855.64,854.55,0.20345642]
[1766209969227,1.15297638,855.65,854.55,0.20345642]
[1766209970129,1.15297638,855.66,854.55,0.20345642]
[1766209971133,1.15297638,855.67,854.55,0.20345642]
[1766209972224,1.15297638,855.68,854.55,0.20345642]
[1766209974130,1.15297638,855.69,854.55,0.20345642]
[1766209976226,1.15297638,855.7,854.55,0.20345642]
[1766209978135,1.15297638,855.71,854.55,0.20345642]
[1766209982234,1.15297638,855.72,854.55,0.20345642]
[1766209985334,1.15297638,855.73,854.55,0.20345642]
[1766209985528,1.15297638,855.53,854.27,7.28426011]
[1766209985731,1.15297638,855.53,854.43,0.20348795]
[1766209986334,1.15297638,855.54,854.43,0.20348795]
[1766209987332,1.15297638,855.55,854.43,0.20348795]
[1766209988334,1.15297638,855.56,854.43,0.20348795]
[1766209990340,1.15297638,855.57,854.43,0.20348795]
[1766209991345,1.15297638,855.58,854.43,0.20348795]
[1766209993342,1.15297638,855.59,854.43,0.20348795]
[1766209995441,1.15297638,855.6,854.43,0.20348795]
[1766209996546,1.15297638,855.6,854.27,7.28426011]
[1766209996752,1.15297638,855.6,854.41,0.20349925]
[1766209999446,1.15297638,855.61,854.41,0.20349925]
[1766210005150,1.15297638,855.6,854.41,0.20349925]
[1766210007050,1.15297638,855.64,854.41,0.20349925]
[1766210007254,1.15297638,855.7,854.41,0.20349925]
[1766210007455,1.15297638,855.69,854.41,0.20349925]
[1766210007955,1.15297638,855.82,854.41,0.20349925]
[1766210010257,1.15297638,855.81,854.41,0.20349925]
[1766210011155,1.15297638,855.8,854.41,0.20349925]
[1766210012453,1.15297638,855.79,854.41,0.20349925]
[1766210014158,1.15297638,855.78,854.41,0.20349925]
[1766210015154,1.15297638,855.77,854.41,0.20349925]
[1766210016155,1.15297638,855.76,854.41,0.20349925]
[1766210017362,1.15297638,855.75,854.41,0.20349925]
[1766210018258,1.15297638,855.74,854.41,0.20349925]
[1766210019161,1.15297638,855.73,854.41,0.20349925]
[1766210020358,1.15297638,855.72,854.41,0.20349925]
[1766210021163,1.15297638,855.71,854.41,0.20349925]
[1766210023167,1.15297638,855.7,854.41,0.20349925]
[1766210029265,1.15297638,855.71,854.41,0.20349925]
[1766210029466,1.15297638,855.7,854.41,0.20349925]
[1766210030170,1.15297638,855.71,854.41,0.20349925]
[1766210034068,1.15297638,855.67,854.41,0.20349925]
[1766210046281,1.15297638,855.66,854.41,0.20349925]
[1766210050386,1.15297638,855.65,854.41,0.20349925]
[1766210053285,1.15297638,855.64,854.41,0.20349925]
[1766210056390,1.15297638,855.63,854.41,0.20349925]
[1766210058393,1.15297638,855.62,854.41,0.20349925]
[1766210060291,1.15297638,855.61,854.41,0.20349925]
[1766210061295,1.15297638,855.6,854.41,0.20349925]
[1766210062293,1.15297638,855.59,854.41,0.20349925]
[1766210063398,1.15297638,855.59,854.41,1.36852224]
[1766210064300,1.15297638,855.58,854.41,1.36852224]
[1766210064497,1.15297638,855.58,854.42,1.16502299]
[1766210065201,1.15297638,855.57,854.42,1.16502299]
[1766210065399,1.15297638,855.56,854.43,1.16502299]
[1766210066405,1.15297638,855.54,854.45,1.16502299]
[1766210067401,1.15297638,855.54,854.46,1.16502299]
[1766210069106,1.15297638,855.53,854.45,1.16502299]
[1766210071610,1.15297638,855.49,854.41,1.36852224]
[1766210072309,1.15297638,855.44,854.41,0.20349925]
[1766210073305,1.15297638,855.45,854.41,0.20349925]
[1766210074112,1.15297638,855.46,854.41,0.20349925]
[1766210077213,1.15297638,855.47,854.41,0.20349925]
[1766210078913,1.15297638,855.41,854.28,1.16502299]
[1766210079120,1.15297638,855.42,854.27,8.4492831]
[1766210079312,1.15297638,855.42,854.4,0.20350877]
[1766210081120,1.15297638,855.43,854.4,0.20350877]
[1766210082821,0.20351532,855.35,854.4,0.20350877]
[1766210136149,1.3564917,855.35,854.4,0.20350877]
[1766210145557,1.15297638,855.3,854.4,0.20350877]
[1766210145754,1.15297638,855.23,854.17,1.16502299]
[1766210145960,1.15297638,855.18,854.28,0.20353853]
[1766210146257,1.15297638,855.2,854.28,0.20353853]
[1766210147259,1.15297638,855.21,854.28,0.20353853]
[1766210148261,1.15297638,855.22,854.28,0.20353853]
[1766210149260,1.15297638,855.23,854.28,0.20353853]
[1766210150459,1.15297638,855.13,854.14,7.28561233]
[1766210151162,1.15297638,855.15,854.14,7.28561233]
[1766210151360,1.15297638,855.09,854.14,7.28561233]
[1766210152265,1.15297638,855.11,854.14,7.28561233]
[1766210153264,1.15297638,855.12,854.14,7.28561233]
[1766210154066,1.15297638,855.12,853.86,1.16502299]
[1766210154266,1.15297638,855.13,853.84,1.16502299]
[1766210154562,1.15297638,855.13,854.02,0.20360343]
[1766210155267,1.15297638,855.14,854.02,0.20360343]
[1766210156367,1.15297638,855.15,854.02,0.20360343]
[1766210157067,1.15297638,855.1,854.02,0.20360343]
[1766210157268,1.15297638,855.12,854.02,0.20360343]
[1766210158262,1.15297638,855.13,854.02,0.20360343]
[1766210158566,1.15297638,855.05,854.02,0.20360343]
[1766210158964,1.15297638,855.05,853.67,8.44771228]
[1766210159163,1.15297638,855.07,853.87,0.20363679]
[1766210161170,1.15297638,855.08,853.87,0.20363679]
[1766210162367,1.15297638,855.09,853.87,0.20363679]
[1766210163171,1.15297638,855.1,853.87,0.20363679]
[1766210164172,1.15297638,855.11,853.87,0.20363679]
[1766210165272,1.15297638,855.12,853.87,0.20363679]
[1766210166173,1.15297638,855.13,853.87,0.20363679]
[1766210167170,1.15297638,855.14,853.87,0.20363679]
[1766210169279,1.72946457,855.3,853.87,0.20363679]
[1766210169280,1.15297638,855.15,853.87,0.20363679]
[1766210171178,1.15297638,855.16,853.87,0.20363679]
[1766210174185,1.15297638,855.17,853.87,0.20363679]
[1766210177184,1.15297638,855.18,853.87,0.20363679]
[1766210178890,1.15297638,855.18,853.67,7.28268929]
[1766210180493,0.2036207,854.89,853.9,0.2036207]
[1766210189699,1.15297638,855.16,853.67,7.28268929]
[1766210189903,0.2036219,854.89,853.91,0.2036219]
[1766210190203,1.15297638,855.16,853.67,7.28268929]
[1766210191406,1.15297638,855.15,853.67,7.28268929]
[1766210191603,0.2036219,854.89,853.93,0.2036219]
[1766210194610,1.15297638,855.14,853.93,0.2036219]
[1766210194803,0.20361951,854.92,853.93,0.2036219]
[1766210211225,1.35659589,854.92,853.93,0.2036219]
[1766210213225,1.15297638,854.91,853.93,0.2036219]
[1766210215328,1.15297638,854.9,853.93,0.2036219]
[1766210216328,1.15297638,854.89,853.93,0.2036219]
[1766210217227,1.15297638,854.88,853.93,0.2036219]
[1766210218226,1.15297638,854.87,853.93,0.2036219]
[1766210220629,0.87842197,854.71,853.93,0.2036219]
[1766210220830,0.87842197,854.65,853.93,0.2036219]
[1766210221126,0.87842197,854.66,853.93,0.2036219]
[1766210222229,5.04587374,854.71,853.93,0.2036219]
[1766210289182,5.04587374,854.71,853.94,1.16502299]
[1766210320507,5.04587374,854.71,853.93,1.36864489]
[1766210335022,5.04587374,854.71,853.93,0.2036219]
[1766210342427,0.8783736,854.76,853.93,0.2036219]
[1766210353330,0.8783736,854.77,853.93,0.2036219]
[1766210370957,0.8783736,854.82,853.93,0.2036219]
[1766210375359,0.8783736,854.81,853.93,0.2036219]
[1766210375653,5.94700083,854.81,853.93,0.2036219]
[1766210376060,5.06862723,854.81,853.93,0.2036219]
[1766210376359,5.94700083,854.81,853.93,0.2036219]
[1766210376759,5.06862723,854.81,853.93,0.2036219]
[1766210379360,5.94700083,854.81,853.93,0.2036219]
[1766210382961,0.8783736,854.77,853.93,0.2036219]
[1766210393277,0.8783736,854.76,853.93,0.2036219]
[1766210422705,5.83877083,854.76,853.93,0.2036219]
[1766210432309,0.8783736,854.75,853.93,0.2036219]
[1766210432609,0.8783736,854.71,853.93,0.2036219]
[1766210433511,0.8783736,854.64,853.93,0.2036219]
[1766210435304,0.8783736,854.64,853.51,52.79138349]
[1766210435305,0.8783736,854.64,853.7,1.16502299]
[1766210435507,0.8783736,854.64,853.82,0.2036648]
[1766210436407,0.8783736,854.65,853.82,0.2036648]
[1766210438512,0.8783736,854.66,853.82,0.2036648]
[1766210440313,0.8783736,854.67,853.82,0.2036648]
[1766210440511,0.8783736,854.66,853.82,0.2036648]
[1766210441412,0.8783736,854.67,853.82,0.2036648]
[1766210445414,0.8783736,854.68,853.82,0.2036648]
[1766210449417,0.8783736,854.69,853.82,0.2036648]
[1766210454115,0.87663746,854.69,853.82,0.2036648]
[1766210458425,0.87663746,854.7,853.82,0.2036648]
[1766210461728,0.87663746,854.67,853.82,0.2036648]
[1766210475338,0.87663746,854.66,853.82,0.2036648]
[1766210481341,0.87663746,854.65,853.82,0.2036648]
[1766210484345,0.87663746,854.64,853.82,0.2036648]
[1766210487445,0.87663746,854.63,853.82,0.2036648]
[1766210489446,0.87663746,854.62,853.82,0.2036648]
[1766210491349,0.87663746,854.61,853.82,0.2036648]
[1766210492454,0.87663746,854.6,853.82,0.2036648]
[1766210493355,0.87663746,854.59,853.82,0.2036648]
[1766210510383,0.87663746,854.58,853.82,0.2036648]
[1766210513380,1.15297638,854.74,853.82,0.2036648]
[1766210513579,0.87829591,854.58,853.82,0.2036648]
[1766210517290,0.87829591,854.61,853.82,0.2036648]
[1766210517587,0.87829591,854.71,853.84,1.16502299]
[1766210517785,0.87829591,854.74,853.87,1.16502299]
[1766210518183,4.96039723,854.76,853.85,1.16502299]
[1766210518487,4.96039723,854.76,853.89,1.16502299]
[1766210519388,4.96039723,854.76,853.87,1.16502299]
[1766210521388,4.96039723,854.76,853.86,1.16502299]
[1766210522190,4.96039723,854.76,853.85,1.16502299]
[1766210523392,4.96039723,854.76,853.84,1.16502299]
[1766210524292,4.96039723,854.76,853.83,1.16502299]
[1766210525294,4.96039723,854.76,853.82,1.36868779]
[1766210526894,4.96039723,854.76,853.91,1.16502299]
[1766210527395,4.96039723,854.76,853.89,1.16502299]
[1766210528297,4.96039723,854.76,853.88,1.16502299]
[1766210529400,4.96039723,854.76,853.87,1.16502299]
[1766210531201,4.96039723,854.76,853.86,1.16502299]
[1766210532304,4.96039723,854.76,853.85,1.16502299]
[1766210534206,4.96039723,854.76,853.84,1.16502299]
[1766210536306,4.96039723,854.76,853.83,1.16502299]
[1766210539202,4.96039723,854.76,853.82,1.36868779]
[1766210542309,4.96039723,854.76,853.82,0.2036648]
[1766210545012,0.20363143,854.94,853.82,0.2036648]
[1766210562329,0.20363143,854.94,853.82,1.36868779]
[1766210565232,0.20363143,854.94,853.83,1.16502299]
[1766210567132,0.20363143,854.94,853.84,1.16502299]
[1766210569432,0.20363143,854.94,853.85,1.16502299]
[1766210570133,0.20363143,854.94,853.86,1.16502299]
[1766210570834,0.87413453,854.99,853.86,1.16502299]
[1766210571029,0.87413453,855.0,853.87,1.16502299]
[1766210571233,0.87413453,854.99,853.88,1.16502299]
[1766210572130,0.87413453,854.98,853.88,1.16502299]
[1766210572332,0.87413453,854.98,853.89,1.16502299]
[1766210573133,0.20359986,855.07,853.89,1.16502299]
[1766210573134,0.87413453,854.97,853.89,1.16502299]
[1766210573339,0.87413453,854.97,853.9,1.16502299]
[1766210574040,6.25625953,854.98,853.91,1.16502299]
[1766210574240,7.13039406,854.98,853.93,1.16502299]
[1766210574644,6.25625953,854.98,853.93,1.16502299]
[1766210574937,6.25625953,854.98,853.82,0.2036648]
[1766210575641,0.8764441,854.97,853.94,1.16722745]
[1766210575839,6.25625953,854.98,853.94,1.16722745]
[1766210576042,0.8764441,854.97,853.94,1.16722745]
[1766210576242,0.8764441,854.95,853.96,1.16722745]
[1766210577244,0.8764441,854.93,853.98,1.16722745]
[1766210578140,6.25625953,854.98,854.07,1.16722745]
[1766210580541,6.25625953,854.98,854.14,1.16722745]
[1766210580845,6.25625953,854.98,854.15,1.16722745]
[1766210581345,6.25625953,854.98,854.14,1.16722745]
[1766210582240,6.25625953,854.98,854.13,1.16722745]
[1766210583145,6.25625953,854.98,854.12,1.16722745]
[1766210584245,6.25625953,854.98,854.11,1.16722745]
[1766210587246,6.25625953,854.98,854.1,1.16722745]
[1766210588246,6.25625953,854.98,854.12,1.16722745]
[1766210589248,6.25625953,854.98,854.11,1.16722745]
[1766210591251,6.25625953,854.98,854.1,1.16722745]
[1766210592752,46.85232155,855.09,854.18,1.16722745]
[1766210593151,46.85232155,855.09,854.17,1.16722745]
[1766210594153,46.85232155,855.09,854.16,1.16722745]
[1766210594650,46.85232155,855.09,854.18,1.16722745]
[1766210595252,46.85232155,855.09,854.17,1.16722745]
[1766210597353,46.85232155,855.09,854.16,1.16722745]
[1766210598158,46.85232155,855.09,854.15,1.16722745]
[1766210599657,46.85232155,855.09,853.99,1.75084118]
[1766210599658,46.85232155,855.09,854.16,1.16722745]
[1766210600356,46.85232155,855.09,854.15,1.16722745]
[1766210602159,46.85232155,855.09,854.14,1.16722745]
[1766210604256,46.85232155,855.09,854.13,1.16722745]
[1766210607158,46.85232155,855.09,854.12,1.16722745]
[1766210618173,46.85232155,855.09,854.13,1.16722745]
[1766210622174,46.85232155,855.09,854.14,1.16722745]
[1766210624374,46.85232155,855.09,854.15,1.16722745]
[1766210627272,46.85232155,855.09,854.16,1.16722745]
[1766210628277,46.85232155,855.09,854.17,1.16722745]
[1766210630279,46.85232155,855.09,854.18,1.16722745]
[1766210631382,46.85232155,855.09,854.19,1.16722745]
[1766210632277,46.85232155,855.09,854.2,1.16722745]
[1766210633576,46.85232155,855.09,854.21,1.16722745]
[1766210634185,46.85232155,855.09,854.22,1.16722745]
[1766210636280,46.85232155,855.09,854.23,1.16722745]
[1766210637385,46.85232155,855.09,854.25,1.16722745]
[1766210639385,46.85232155,855.09,854.26,1.16722745]
[1766210642384,46.85232155,855.09,854.27,1.16722745]
[1766210644185,46.85232155,855.09,854.28,1.16722745]
[1766210647092,46.85232155,855.09,854.29,1.16722745]
[1766210648295,46.85232155,855.09,854.3,1.16722745]
[1766210650296,46.85232155,855.09,854.31,1.16722745]
[1766210651394,46.85232155,855.09,854.32,1.16722745]
[1766210652199,46.85232155,855.09,854.33,1.16722745]
[1766210654593,46.85232155,855.09,854.34,1.16722745]
[1766210670011,1.16859214,855.34,854.34,1.16722745]
[1766210674111,1.16859214,855.35,854.34,1.16722745]
[1766210686525,1.16859214,855.34,854.34,1.16722745]
[1766210686727,7.53599744,855.34,854.34,1.16722745]
[1766210710142,6.3674053,855.34,854.34,1.16722745]
[1766210711042,6.3674053,855.34,854.35,1.16722745]
[1766210711347,6.3674053,855.34,854.37,1.16722745]
[1766210714251,6.3674053,855.34,854.36,1.16722745]
[1766210716146,6.3674053,855.34,854.37,1.16722745]
[1766210716451,6.3674053,855.34,854.41,1.16722745]
[1766210717248,6.3674053,855.34,854.4,1.16722745]
[1766210719254,6.3674053,855.34,854.39,1.16722745]
[1766210721554,6.3674053,855.34,854.48,1.16722745]
[1766210722256,6.3674053,855.34,854.46,1.16722745]
[1766210724356,6.3674053,855.34,854.45,1.16722745]
[1766210725255,6.3674053,855.34,854.44,1.16722745]
[1766210727258,6.3674053,855.34,854.43,1.16722745]
[1766210729363,6.3674053,855.34,854.42,1.16722745]
[1766210732264,6.3674053,855.34,854.41,1.16722745]
[1766210735762,6.3674053,855.34,854.44,1.16722745]
[1766210736262,6.3674053,855.34,854.43,1.16722745]
[1766210737366,6.3674053,855.34,854.23,4.08702233]
[1766210737367,6.3674053,855.34,854.46,1.16722745]
[1766210738063,6.3674053,855.34,854.47,1.16722745]
[1766210738266,6.3674053,855.34,854.46,1.16722745]
[1766210740467,6.3674053,855.34,854.45,1.16722745]
[1766210744171,6.3674053,855.34,854.44,1.16722745]
[1766210745374,6.3674053,855.34,854.48,1.16722745]
[1766210745570,6.3674053,855.34,854.5,1.16722745]
[1766210747276,6.3674053,855.34,854.49,1.16722745]
[1766210750273,6.3674053,855.34,854.48,1.16722745]
[1766210751776,6.3674053,855.34,854.49,1.16722745]
[1766210754179,6.3674053,855.34,854.48,1.16722745]
[1766210760790,6.3674053,855.34,854.51,1.16722745]
[1766210761390,6.3674053,855.34,854.52,1.16722745]
[1766210763293,6.3674053,855.34,854.53,1.16722745]
[1766210763487,6.3674053,855.34,854.52,1.16722745]
[1766210764189,6.3674053,855.34,854.53,1.16722745]
[1766210769191,6.3674053,855.34,854.54,1.16722745]
[1766210771200,6.3674053,855.34,854.55,1.16722745]
[1766210774297,6.3674053,855.34,854.56,1.16722745]
[1766210776305,6.3674053,855.34,854.57,1.16722745]
[1766210779309,6.3674053,855.34,854.58,1.16722745]
[1766210781210,6.3674053,855.34,854.59,1.16722745]
[1766210781509,6.3674053,855.34,854.54,1.16722745]
[1766210782308,6.3674053,855.34,854.55,1.16722745]
[1766210786112,6.3674053,855.34,854.52,1.16722745]
[1766210789315,6.3674053,855.34,854.53,1.16722745]
[1766210792415,6.3674053,855.34,854.54,1.16722745]
[1766210795214,6.3674053,855.34,854.55,1.16722745]
[1766210798220,6.3674053,855.34,854.56,1.16722745]
[1766210804321,6.3674053,855.34,854.55,1.16722745]
[1766210804525,6.3674053,855.34,854.52,1.16722745]
[1766210804725,6.3674053,855.34,854.5,1.16722745]
[1766210807425,6.3674053,855.34,854.49,1.16722745]
[1766210807625,0.20348081,855.59,854.49,1.16722745]
[1766210811422,0.20348081,855.59,854.48,1.16722745]
[1766210817229,0.20348081,855.59,854.47,1.16722745]
[1766210828335,0.20348081,855.59,854.48,1.16722745]
[1766210835441,0.20348081,855.59,854.49,1.16722745]
[1766210839347,0.20348081,855.59,854.5,1.16722745]
[1766210841551,0.20348081,855.59,854.51,1.16722745]
[1766210845556,0.20348081,855.59,854.52,1.16722745]
[1766210852364,1.37207295,855.59,854.52,1.16722745]
[1766210856464,1.37207295,855.59,854.53,1.16722745]
[1766210860369,1.16859214,855.58,854.54,1.16722745]
[1766210863369,1.16859214,855.57,854.55,1.16722745]
[1766210864366,1.16859214,855.56,854.56,1.16722745]
[1766210882082,1.16859214,855.57,854.56,1.16722745]
[1766210922314,0.20346475,855.6,854.61,1.16722745]
[1766210923214,0.20346475,855.6,854.6,1.16722745]
[1766210925419,0.20346475,855.6,854.59,1.16722745]
[1766210930326,0.20346475,855.6,854.58,1.16722745]
[1766210944133,0.20346475,855.6,854.57,1.16722745]
[1766210948936,0.20346475,855.6,854.58,1.16722745]
[1766210962347,1.37205689,855.6,854.53,1.16722745]
[1766210962753,1.16859214,855.48,854.41,1.16722745]
[1766210962955,1.16859214,855.4,854.33,1.16722745]
[1766210963149,1.16859214,855.42,854.3,1.16722745]
[1766210964154,1.16859214,855.43,854.29,1.16722745]
[1766210965152,1.16859214,855.45,854.28,1.16722745]
[1766210966159,1.16859214,855.46,854.27,1.16722745]
[1766210966454,1.16859214,855.46,854.26,1.37069398]
[1766210967158,1.16859214,855.47,854.26,1.37069398]
[1766210968260,1.16859214,855.47,854.26,0.20346653]
[1766210969261,1.16859214,855.48,854.26,0.20346653]
[1766210970157,1.16859214,855.49,854.26,0.20346653]
[1766210971359,1.16859214,855.5,854.26,0.20346653]
[1766210973164,1.16859214,855.51,854.26,0.20346653]
[1766210975260,1.16859214,855.52,854.26,0.20346653]
[1766210978164,1.16859214,855.53,854.26,0.20346653]
[1766210981168,1.16859214,855.54,854.26,0.20346653]
[1766210985173,1.16859214,855.55,854.26,0.20346653]
[1766210992080,1.16859214,855.56,854.26,0.20346653]
[1766210994283,1.16859214,855.55,854.26,0.20346653]
[1766210994585,0.20346475,855.6,854.26,0.20346653]
[1766210995382,0.20346475,855.6,854.26,1.37069398]
[1766210996782,1.37205689,855.6,854.26,0.20346653]
[1766210996982,1.16859214,855.56,854.26,0.20346653]
[1766210998284,1.16859214,855.55,854.26,0.20346653]
[1766211005193,1.16859214,855.54,854.26,0.20346653]
[1766211009103,1.16859214,855.53,854.26,0.20346653]
[1766211011204,1.16859214,855.52,854.26,0.20346653]
[1766211013205,1.16859214,855.51,854.26,0.20346653]
[1766211015105,1.16859214,855.5,854.26,0.20346653]
[1766211016107,1.16859214,855.49,854.26,1.37069398]
[1766211017106,1.16859214,855.48,854.27,1.16722745]
[1766211018206,1.16859214,855.47,854.28,1.16722745]
[1766211019206,1.16859214,855.46,854.29,1.16722745]
[1766211020110,1.16859214,855.45,854.3,1.16722745]
[1766211021313,1.16859214,855.43,854.32,1.16722745]
[1766211022313,1.16859214,855.4,854.35,1.16722745]
[1766211045030,32.45787073,855.33,854.35,1.16722745]
[1766211045232,36.84742842,855.33,854.35,1.16722745]
[1766211049130,36.84742842,855.33,854.36,1.16722745]
[1766211056135,36.84742842,855.33,854.37,1.16722745]
[1766211095477,37.05094731,855.33,854.37,1.16722745]
[1766211095778,1.16859214,855.29,854.32,0.20350996]
[1766211096579,1.16859214,855.31,854.32,0.20350996]
[1766211097383,1.16859214,855.32,854.32,0.20350996]
[1766211099283,38.21953945,855.33,854.32,0.20350996]
[1766211102387,37.05094731,855.33,854.32,0.20350996]
[1766211121907,36.84742842,855.33,854.36,1.16722745]
[1766211122208,36.84742842,855.33,854.37,1.16722745]
[1766211123509,36.84742842,855.33,854.39,1.16722745]
[1766211124509,36.84742842,855.33,854.45,1.16722745]
[1766211125011,36.84742842,855.33,854.53,1.16722745]
[1766211125505,36.84742842,855.33,854.57,1.16722745]
[1766211126506,36.84742842,855.33,854.59,1.16722745]
[1766211127308,36.84742842,855.33,854.57,1.16722745]
[1766211129307,36.84742842,855.33,854.55,1.16722745]
[1766211130409,36.84742842,855.33,854.54,1.16722745]
[1766211131414,36.84742842,855.33,854.53,1.16722745]
[1766211132415,36.84742842,855.33,854.52,1.16722745]
[1766211133313,36.84742842,855.33,854.51,1.16722745]
[1766211134316,36.84742842,855.33,854.5,1.16722745]
[1766211135321,36.84742842,855.33,854.49,1.16722745]
[1766211136316,36.84742842,855.33,854.48,1.16722745]
[1766211137321,36.84742842,855.33,854.47,1.16722745]
[1766211139321,36.84742842,855.33,854.46,1.16722745]
[1766211139819,4.38955769,855.33,854.51,1.16722745]
[1766211140424,4.38955769,855.33,854.5,1.16722745]
[1766211141522,4.38955769,855.33,854.53,1.16722745]
[1766211143325,4.38955769,855.33,854.52,1.16722745]
[1766211144322,4.38955769,855.33,854.51,1.16722745]
[1766211145527,4.38955769,855.33,854.5,1.16722745]
[1766211145726,4.38955769,855.33,854.54,1.16722745]
[1766211146428,4.38955769,855.33,854.53,1.16722745]
[1766211148225,4.38955769,855.33,854.52,1.16722745]
[1766211149325,4.38955769,855.33,854.51,1.16722745]
[1766211151330,4.38955769,855.33,854.5,1.16722745]
[1766211153528,4.38955769,855.33,854.49,1.16722745]
[1766211156429,4.38955769,855.33,854.48,1.16722745]
[1766211157232,4.38955769,855.33,854.49,1.16722745]
[1766211157534,4.38955769,855.33,854.48,1.16722745]
[1766211158228,4.38955769,855.33,854.49,1.16722745]
[1766211163337,4.38955769,855.33,854.5,1.16722745]
[1766211166338,4.38955769,855.33,854.51,1.16722745]
[1766211167439,0.20344274,855.89,854.51,1.16722745]
[1766211167745,36.04290192,855.88,854.51,1.16722745]
[1766211168339,36.04290192,855.88,854.52,1.16722745]
[1766211168939,40.83855572,855.88,854.52,1.16722745]
[1766211169443,40.83855572,855.88,854.53,1.16722745]
[1766211171343,40.83855572,855.88,854.54,1.16722745]
[1766211172340,40.83855572,855.88,854.55,1.16722745]
[1766211173242,40.83855572,855.88,854.56,1.16722745]
[1766211174341,40.83855572,855.88,854.58,1.16722745]
[1766211175243,40.83855572,855.88,854.59,1.16722745]
[1766211176345,40.83855572,855.88,854.6,1.16722745]
[1766211177450,40.83855572,855.88,854.48,1.16722745]
[1766211178450,40.83855572,855.88,854.5,1.16722745]
[1766211179449,1.16859214,855.87,854.52,1.16722745]
[1766211181245,1.16859214,855.86,854.52,1.16722745]
[1766211181550,1.16859214,855.84,854.55,1.16722745]
[1766211182345,1.16859214,855.83,854.56,1.16722745]
[1766211183249,1.16859214,855.82,854.56,1.16722745]
[1766211183446,1.16859214,855.81,854.58,1.16722745]
[1766211184250,1.16859214,855.79,854.59,1.16722745]
[1766211185445,1.16859214,855.79,854.6,1.16722745]
[1766211187248,1.16859214,855.8,854.61,1.16722745]
[1766211187448,1.16859214,855.83,854.64,1.16722745]
[1766211193353,1.16859214,855.82,854.64,1.16722745]
[1766211213179,1.16859214,855.82,854.65,1.16722745]
[1766211216084,1.16859214,855.81,854.64,1.16722745]
[1766211218285,1.16859214,855.8,854.64,1.16722745]
[1766211220886,1.16859214,855.78,854.62,1.16722745]
[1766211222891,1.16859214,855.76,854.6,1.16722745]
[1766211223492,1.16859214,855.76,854.61,1.16722745]
[1766211224093,1.16859214,855.75,854.6,1.16722745]
[1766211224292,1.16859214,855.74,854.59,1.16722745]
[1766211225390,1.16859214,855.73,854.58,1.16722745]
[1766211230301,1.16859214,855.72,854.58,1.16722745]
[1766211231308,1.16859214,855.73,854.58,1.16722745]
[1766211231601,1.16859214,855.72,854.59,1.16722745]
[1766211234297,1.16859214,855.72,854.6,1.16722745]
[1766211234501,1.16859214,855.71,854.6,1.16722745]
[1766211236303,1.16859214,855.7,854.61,1.16722745]
[1766211237304,1.16859214,855.7,854.6,1.16722745]
[1766211239206,1.16859214,855.71,854.6,1.16722745]
[1766211241708,1.16859214,855.66,854.56,1.16722745]
[1766211242407,1.75288821,855.82,854.56,1.16722745]
[1766211242408,1.16859214,855.67,854.56,1.16722745]
[1766211243408,1.16859214,855.67,854.55,1.16722745]
[1766211246312,1.16859214,855.68,854.55,1.16722745]
[1766211247310,1.16859214,855.68,854.54,1.16722745]
[1766211253217,1.16859214,855.68,854.53,1.16722745]
[1766211254113,1.16859214,855.68,854.54,1.16722745]
[1766211254317,1.16859214,855.69,854.53,1.16722745]
[1766211264230,1.16859214,855.68,854.54,1.16722745]
[1766211264428,1.16859214,855.68,854.54,4.20927492]
[1766211271830,1.16859214,855.67,854.54,4.20927492]
[1766211272234,1.16859214,855.67,854.55,1.16722745]
[1766211275237,1.16859214,855.66,854.55,1.16722745]
[1766211275437,1.16859214,855.66,854.54,4.20927492]
[1766211276242,1.16859214,855.65,854.55,1.16722745]
[1766211277735,1.16859214,855.65,854.54,3.04204747]
[1766211278037,1.16859214,855.61,854.54,3.04204747]
[1766211281248,1.16859214,855.6,854.54,3.04204747]
[1766211306058,1.16859214,855.58,854.54,3.04204747]
[1766211306753,1.16859214,855.55,854.54,3.04204747]
[1766211309255,1.16859214,855.56,854.54,3.04204747]
[1766211318262,1.16859214,855.57,854.54,3.04204747]
[1766211320662,0.20347426,855.49,854.54,3.04204747]